Cogmind - Beta 15 @@@ ROGUE MODE // 2025.05.08 @ 15:59:42 Player: krazyk Result: Self-destructed Performance ------------- Evolutions (2) 1000 Regions Visited (3) 600 Robots Destroyed (26) 130 Value Destroyed (671) 671 Prototype IDs (2) 40 Alien Tech Used (0) 0 Bonus (0) 0 TOTAL SCORE: 2441 Bonus ------- None Cogmind --------- Core Integrity 242/550 Matter 15/300 Energy 100/100 System Corruption 0% Temperature Cool (0) Movement Core (350) Ox6 Location -8/Materials Parts ------- > --- POWER (1) -------- (None) > --- PROPULSION (4) --- Improved VTOL Module > --- UTILITY (4) ------ Disposable Heat Sink Large Storage Unit Signal Interpreter > --- WEAPON (2) ------- (None) > --- INVENTORY (15) --- Aluminum Leg High-capacity Matter Pod (0) Targeting Computer Improved Targeting Computer Advanced Targeting Computer Weapon Cycler Core Shielding Improved Medium Armor Plating Gauss Cannon Gauss Cannon Gauss Cannon Grenade Launcher Datajack Great Axe Peak State ------------ > --- POWER ------------ Light Deuterium Engine > --- PROPULSION ------- Medium Treads Medium Treads Medium Treads Medium Treads > --- UTILITY ---------- Disposable Heat Sink Large Storage Unit High-capacity Matter Pod Signal Interpreter > --- WEAPON ----------- Heavy Particle Cannon Gauss Cannon > --- INVENTORY -------- Light Deuterium Engine Aluminum Leg Targeting Computer Improved Targeting Computer Advanced Targeting Computer Weapon Cycler Core Shielding Improved Medium Armor Plating Layered Light Armor Plating Gauss Cannon Gauss Cannon Gauss Cannon Grenade Launcher Datajack Great Axe [Rating: 35] Favorites ----------- Power Light Deuterium Engine Engine Light Deuterium Engine Propulsion Light Treads Treads Light Treads Leg Aluminum Leg Hover Unit Aerolev Unit Flight Unit Improved VTOL Module Utility Signal Interpreter Device Disposable Heat Sink Storage Small Storage Unit Processor Signal Interpreter Protection Core Shielding Weapon Heavy Particle Cannon Energy Gun EM Shotgun Energy Cannon Heavy Particle Cannon Ballistic Gun Assault Rifle Ballistic Cannon Gauss Cannon Launcher Grenade Launcher Special Melee Weapon Datajack Build | -11 -10 -9 -8 ------- Run | Yrd Mat Mat Mat Slots Evolved 4 | . . 2 2 Power . | . . . . Propulsion 2 | . . 2 . Utility 2 | . . . 2 Weapon . | . . . . Parts Attached 33 | 5 6 12 10 Power 4 | 1 . 2 1 Engine 4 | 1 . 2 1 Core . | . . . . Reactor . | . . . . Propulsion 12 | 2 . 5 5 Treads 8 | 2 . 2 4 Leg 2 | . . 2 . Wheel . | . . . . Hover 1 | . . 1 . Flight 1 | . . . 1 Utility 7 | 1 2 1 3 Device 1 | . . . 1 Storage 3 | 1 . 1 1 Processor 1 | . 1 . . Hackware . | . . . . Protection 2 | . 1 . 1 Artifact . | . . . . Weapon 10 | 1 4 4 1 Energy Gun 2 | 1 . 1 . Energy Cannon 1 | . . 1 . Ballistic Gun 3 | . 2 1 . Ballistic Cannon 1 | . . . 1 Launcher 2 | . 1 1 . Special Weapon . | . . . . Impact Weapon . | . . . . Slashing Weapon . | . . . . Piercing Weapon . | . . . . Special Melee Weapon 1 | . 1 . . Unidentified Prototypes 2 | . . 1 1 Parts Lost 12 | . . 1 11 Power 3 | . . 1 2 Propulsion 4 | . . . 4 Utility 1 | . . . 1 Weapon 4 | . . . 4 Highest Loss Streak 5 | . . 1 5 To Critical Strikes 1 | . . . 1 Average Backups 8 | 4 7 7 10 Power . | . 1 1 . Propulsion 1 | 2 3 1 1 Utility 2 | . 1 2 5 Weapon 2 | 1 2 1 2 Tool/Special . | . . . . Unused Backups 12 | . 2 1 9 Power 1 | . . 1 . Propulsion 2 | . 2 . . Utility 5 | . . . 5 Weapon 4 | . . . 4 Tool/Special . | . . . . Average Slot Usage (%) 95 | . 96 99 90 Engine 10 | . 14 10 8 Treads 33 | . 28 40 28 Device 3 | . . . 9 Storage 13 | . 14 11 15 Processor 9 | . 7 11 9 Protection 1 | . 4 . 1 Energy Gun 1 | . 1 . 3 Energy Cannon 5 | . . 8 6 Ballistic Gun 5 | . 8 7 . Ballistic Cannon 1 | . . . 3 Launcher 4 | . 8 4 2 Special Melee Weapon 2 | . 7 1 . Peak Build Rating 35 | 5 7 17 35 Average Rating 14 | 4 6 13 26 On Entrance 6 | . 5 7 15 Naked Turns . | . . . . Heaviest Build 43 | 12 16 34 43 Greatest Support 112 | 40 40 80 112 Greatest Overweight (x) 14 | . . 1 14 Average Overweight (x) . | . . . . Largest Inventory Capacity 15 | 8 8 15 15 Average Capacity 10 | 6 8 9 15 Most Carried 15 | 7 8 9 15 Average Carried 8 | 4 7 7 10 Final Capacity 15 | 8 8 15 15 Final Carried 14 | 7 8 8 14 Class Distribution -------------------- 100% | Mutant Dominant Class ---------------- Mutant | -10/Materials Mutant | -9/Materials Mutant | -8/Materials Resources | -11 -10 -9 -8 ----------- Run | Yrd Mat Mat Mat Matter Collected 619 | 248 47 260 64 Remotely . | . . . . Salvage Created 668 | . 46 486 136 Parts 40 | . 2 32 6 Haulers Intercepted . | . . . . Recyclers Shooed . | . . . . Parts Field Recycled . | . . . . Retrieved Matter . | . . . . Parts Self-Destructed . | . . . . Prevented . | . . . . Kills | -11 -10 -9 -8 ------- Run | Yrd Mat Mat Mat Combat Hostiles Destroyed 18 | . 1 14 3 Guns 1 | . 1 . . Cannons 8 | . . 6 2 AOE 9 | . . 8 1 Classes Destroyed 7 | . 1 6 . Worker 3 | . . 3 . Builder 4 | . . 2 2 Watcher 1 | . . 1 . Swarmer 3 | . . 3 . Grunt 13 | . 1 9 3 Brawler 1 | . . 1 . Sentry 1 | . . 1 . Best Kill Streak 11 | . 1 11 2 Combat Bots Only 6 | . 1 6 1 Max Kills in Single Turn 3 | . 1 3 2 Gunslinging . | . . . . Exploded 2 | . . 2 1 Melee . | . . . . Uniques/NPCs Destroyed . | . . . . Combat | -11 -10 -9 -8 -------- Run | Yrd Mat Mat Mat Hostile Shots Fired 231 | . 2 57 172 Missed 66 | . . 15 51 Hits 165 | . 2 42 121 Melee 5 | . . 5 . Projectile 160 | . 2 37 121 Critical Strikes 9 | . . 1 8 Damage Taken 2511 | . 22 558 1931 Core 421 | . 12 101 308 Absorbed by Shields . | . . . . Regen/Repaired (Parts) 58 | . . . 58 Core Remaining (%) 89 | 100 95 74 . Volleys Fired 51 | 1 3 27 20 Largest 2 | 1 2 2 2 Hottest 120 | 50 50 120 120 Shots Fired 82 | 1 4 44 33 Gun 27 | 1 3 16 7 Cannon 34 | . . 19 15 Launcher 21 | . 1 9 11 Special . | . . . . Kinetic 25 | . 3 15 7 Thermal 28 | 1 . 19 8 Explosive 21 | . 1 9 11 Electromagnetic 8 | . . 1 7 Robot Hit Streak 10 | . 1 4 10 Robot Miss Streak 5 | . 1 5 3 Penetration Max . | . . . . Secondary Targets . | . . . . Shots Hit Robots 50 | . 1 23 26 Core Hits 42 | . 1 27 14 Critical Kills . | . . . . Critical Parts Destroyed . | . . . . Critical Strikes 1 | . . . 1 Blast 1 | . . . 1 Melee Attacks 1 | . . 1 . Impact . | . . . . Slashing . | . . . . Piercing . | . . . . Sneak Attacks . | . . . . Combat Hostiles . | . . . . Follow-up Attacks . | . . . . Damage Inflicted 1721 | . 15 976 730 Guns 223 | . 15 114 94 Cannons 589 | . . 325 264 Explosions 909 | . . 537 372 Melee . | . . . . Ramming . | . . . . Kinetic 268 | . 15 114 139 Thermal 450 | . . 325 125 Explosive 909 | . . 537 372 Electromagnetic 94 | . . . 94 Impact . | . . . . Slashing . | . . . . Piercing . | . . . . Highest Corruption 3 | . 1 3 . Average Corruption 2 | . 1 3 . Corruption Purged . | . . . . Corruption Blocked . | . . . . Effects 4 | . . 4 . Message Errors 1 | . . 1 . Matter Fused 1 | . . 1 . Energy Discharges 1 | . . 1 . Parts Rejected 1 | . . 1 . Overload Shots . | . . . . Overflow Damage 28 | . . 28 . Projectiles 20 | . . 20 . Explosions 8 | . . 8 . Melee . | . . . . Knockbacks 1 | . . . 1 Impact . | . . . . Kinetic 1 | . . . 1 Secondary . | . . . . Self-Inflicted Damage 122 | . . 34 88 Shots 7 | . . 1 6 Rammed . | . . . . Targets Rammed . | . . . . Kicked . | . . . . Crushed . | . . . . Highest Temperature 234 | 10 . 234 195 Average Temperature 68 | 7 . 65 73 Received Heat Transfer 1257 | . 12 192 1053 Effects 1 | . . 1 . Energy Bleed 1 | . . 1 . Siege Activations . | . . . . Martial Activations . | . . . . Shielding Activations . | . . . . Robots Disrupted . | . . . . Combat Hostiles . | . . . . Robots Corrupted . | . . . . Combat Hostiles . | . . . . Parts Fried . | . . . . Impact Corruptions . | . . . . Robots Melted . | . . . . Combat Hostiles . | . . . . Parts Melted . | . . . . Heat Transferred 666 | . . 481 185 Parts Sabotaged . | . . . . Parts Stolen . | . . . . Parts Stripped . | . . . . Power Chain Reactions . | . . . . Alert | -11 -10 -9 -8 ------- Run | Yrd Mat Mat Mat Maximum Alert Level 1 | . . 1 . Low Security (%) 90 | 100 100 75 100 Level 1 9 | . . 24 . Level 2 . | . . . . Level 3 . | . . . . Level 4 . | . . . . Level 5 . | . . . . High Security . | . . . . Max Security . | . . . . Peak Influence 350 | . 40 350 161 Initial 141 | . . 16 141 Average 68 | . 1 87 115 Influence Increases 706 | . 46 500 160 Destroy 0b10 Robot/C 360 | . 20 280 60 Destroy 0b10 Robot/NC 40 | . . 30 10 Destroy Leader 92 | . 10 72 10 Successful Hack 9 | . 6 . 3 Disable Machine 60 | . . 15 45 Destroy Structure 100 | . 10 73 17 Lose Combat Pursuer 45 | . . 30 15 Influence Decreases 695 | . 6 206 483 Entered New Map 217 | . . 24 193 Time Decay 368 | . 6 182 180 Lost Part 110 | . . . 110 Squads Dispatched 9 | . 3 4 2 Investigation 5 | . 2 2 1 Extermination . | . . . . Reinforcement 4 | . 1 2 1 Assault . | . . . . Garrison . | . . . . Intercept . | . . . . Searches Triggered . | . . . . Construction Impeded 2 | . . 1 1 Haulers Reinforced . | . . . . Active Scanning Responses . | . . . . Cargo Convoy Interrupts . | . . . . Stealth | -11 -10 -9 -8 --------- Run | Yrd Mat Mat Mat Distress Signals 1 | . . 1 . Communications Jammed . | . . . . Distress Signals . | . . . . Times Spotted 31 | . 2 21 8 Peak Tracking Total 5 | . 2 4 5 Tactical Retreats 3 | . . 2 1 Traps | -11 -10 -9 -8 ------- Run | Yrd Mat Mat Mat Traps Triggered 1 | . . 1 . Indirectly . | . . . . Trap Hack Attempts 4 | . 4 . . Triggered . | . . . . Disarmed 1 | . 1 . . Reprogrammed . | . . . . Reused . | . . . . Traps Extracted . | . . . . Installed . | . . . . Triggered . | . . . . Machines | -11 -10 -9 -8 ---------- Run | Yrd Mat Mat Mat Machines Disabled 4 | . . 1 3 Max in Single Turn 1 | . . 1 1 Machines Repaired . | . . . . Machines Dismantled . | . . . . Machines Sabotaged . | . . . . Overloaded Fab Kills . | . . . . Hacking | -11 -10 -9 -8 --------- Run | Yrd Mat Mat Mat Machines Accessed 7 | . 2 2 3 Terminals 4 | . 2 1 1 Fabricators . | . . . . Repair Stations 1 | . . . 1 Recycling Units 1 | . . 1 . Scanalyzers 1 | . . . 1 Garrison Access . | . . . . Total Hacks 30 | . 12 9 9 Successful 19 | . 9 2 8 Failed 11 | . 3 7 1 Catastrophic . | . . . . Database Lockouts . | . . . . Manual 2 | . 2 . . Terminals 20 | . 12 5 3 Fabricators . | . . . . Repair Stations 3 | . . . 3 Recycling Units 4 | . . 4 . Scanalyzers 3 | . . . 3 Garrison Access . | . . . . Terminal Hacks 12 | . 9 . 3 Record 7 | . 4 . 3 Emergency Access Points 1 | . 1 . . Alert Level 2 | . 2 . . Locate Traps 1 | . 1 . . Zone Layout 1 | . 1 . . Fabricator Hacks . | . . . . Repair Station Hacks 3 | . . . 3 Scan Component 2 | . . . 2 Repair 1 | . . . 1 Recycling Unit Hacks 2 | . . 2 . Recycle Component 1 | . . 1 . Process 1 | . . 1 . Scanalyzer 2 | . . . 2 Insert Component 1 | . . . 1 Analyze 1 | . . . 1 Garrison Access Hacks . | . . . . Unauthorized Hacks . | . . . . Terminals . | . . . . Fabricators . | . . . . Repair Stations . | . . . . Recycling Units . | . . . . Scanalyzers . | . . . . Garrison Access . | . . . . Data Cores Recovered . | . . . . Used . | . . . . Hacking Detections 7 | . 2 2 3 Full Trace Events 4 | . 1 1 2 Feedback Events 1 | . 1 . . Corruption 1 | . 1 . . Feedback Blocked . | . . . . Robot Schematics Acquired . | . . . . Robots Built . | . . . . Authchips . | . . . . Time . | . . . . Total Robot Build Rating . | . . . . Part Schematics Acquired 1 | . . . 1 Parts Built . | . . . . Authchips . | . . . . Time . | . . . . Total Part Build Rating . | . . . . Parts Repaired 1 | . . . 1 Time 38 | . . . 38 Parts Recycled 1 | . . 1 . Recycled Matter 55 | . . 55 . Retrieved Matter . | . . . . Retrieved Components . | . . . . Parts Scanalyzed 1 | . . . 1 Part Schematics Acquired 1 | . . . 1 Parts Damaged . | . . . . Bothacking | -11 -10 -9 -8 ------------ Run | Yrd Mat Mat Mat Used RIF Installer . | . . . . Robots Hacked . | . . . . Non-combat . | . . . . Combat . | . . . . Robot Hacks Applied . | . . . . Relay Couplers Released . | . . . . Fabnet Peak Effective % . | . . . . Robots Rewired . | . . . . Allies Hacked . | . . . . Hacks Repelled . | . . . . Allies | -11 -10 -9 -8 -------- Run | Yrd Mat Mat Mat Total Allies . | . . . . Largest Group . | . . . . Highest-Rated Group . | . . . . Highest-Rated Ally . | . . . . Total Orders . | . . . . Ally Attacks . | . . . . Total Damage . | . . . . Kills . | . . . . Allies Corrupted . | . . . . Allies Melted . | . . . . Intel | -11 -10 -9 -8 ------- Run | Yrd Mat Mat Mat Active Infowar (turns) . | . . . . Robot Analysis Total . | . . . . Derelict Logs Recovered . | . . . . Drone Launches . | . . . . Drone Recoveries . | . . . . Exploration | -11 -10 -9 -8 ------------- Run | Yrd Mat Mat Mat Turns Passed 1249 | 128 268 482 371 Spaces Moved 607 | 74 150 231 152 Core 11 | 7 . . 4 Treads 590 | 67 150 226 147 Legs . | . . . . Wheels . | . . . . Hover 5 | . . 5 . Flight 1 | . . . 1 Fastest Speed 50 | 50 160 160 160 Average Speed 165 | 149 160 160 184 Slowest Speed 750 | 160 160 170 750 Overloaded Moves . | . . . . Propulsion Burnouts . | . . . . Robots Hopped . | . . . . Potential Cave-ins . | . . . . Cave-ins Triggered . | . . . . Exploration Rate (%) 19 | 5 37 23 13 Regions Visited 3 Branch Regions . Pre-discovered Areas . | . . . . Known Exits Taken 2 | . 1 1 . Unknown Exits Taken 1 | 1 . . . Scrap Searched . | . . . . Spaces Dug . | . . . . Terrain Destroyed 107 | . 10 77 20 Melee . | . . . . Projectile 11 | . . 6 5 AOE 96 | . 10 71 15 Terrain Rammed . | . . . . Walls Destroyed . | . . . . Machines Disabled . | . . . . Actions | -11 -10 -9 -8 --------- Run | Yrd Mat Mat Mat Total 765 | 90 174 294 207 Wait . | . . . . Move 604 | 73 149 230 152 Hop . | . . . . Pick Up 46 | 11 7 11 17 Fast Attach 1 | 1 . . . Attach 18 | 4 3 4 7 Detach . | . . . . Swap 26 | . 4 15 7 Drop 14 | . 4 6 4 Fire 51 | 1 3 27 20 Melee 1 | . . 1 . Ram . | . . . . Kick . | . . . . Crush . | . . . . Escape Stasis . | . . . . Rewire . | . . . . Trap 4 | . 4 . . Miscellaneous . | . . . . Route ------- -11/Scrapyard -10/Materials (discovered 2 exits: *Mat / [*Min]) -9/Materials -8/Materials History --------- Turn | Location | Event 35 | -11/Scrapyard | Discovered new exit (range 15) 129 | -11/Scrapyard | Entered Materials 324 | -10/Materials | Discovered new exit (range 14) 336 | -10/Materials | Build established: Mutant 363 | -10/Materials | Discovered new exit (range 14) 395 | -10/Materials | Identified exit to Materials 397 | -10/Materials | Entered another Materials area 397 | -9/Materials | Evolved 2 slots: Propulsion x2 876 | -9/Materials | Discovered new exit (range 3) 877 | -9/Materials | Identified exit to Materials 879 | -9/Materials | Entered another Materials area 879 | -8/Materials | Evolved 2 slots: Utility x2 1015 | -8/Materials | Repaired Hvy. Particle Cannon 1201 | -8/Materials | Lost 4 parts (1p3n) 1243 | -8/Materials | Core integrity fell below 50% 1250 | -8/Materials | Self-destructed Last Messages --------------- 01143_ Critical hit (Burn: +37). 01148_ U-05 Engineer lays Concrete. 01150_ Critical hit (Burn: +37). 01152_ U-05 Engineer lays Concrete. 01154_ Lgt. Deuterium Engine destroyed. 01159_ U-05 Engineer lays Concrete. 01164_ U-05 Engineer builds a Wall. 01167_ Med. Treads destroyed. 01168_ U-05 Engineer builds a Wall. 01170_ Critical hit (Destroy). 01170_ Med. Treads destroyed. 01203_ Acquired Prototype Flight Unit. 01217_ Med. Treads destroyed. 01220_ Hvy. Particle Cannon destroyed. 01223_ Critical hit (Burn: +37). 01226_ Identified Imp. VTOL Module. 01237_ Critical hit (Burn: +37). 01242_ Lgt. Deuterium Engine destroyed. 01245_ Lyr. Light Armor Plating destroyed. 01248_ Gauss Cannon destroyed. Map ----- +----------------------------------------------------+ | ???? ?######" #????????????????????????????????? | | ?###+## #????????????????????????????????? | | # %%% !#????????????????????????????????? | | " % !!#????????????????????????????????? | | " ! /#????????????????????????????????? | | ###### = //#????????????????????????????????? | | ??????## ######????????????????????????????????? | | ######## #?????????????????????????????????????? | | ##"""# #?????????????????????????????????????? | | ##"R"# #?????????????????????????????????????? | | " ## "# #?????????????????????????????????????? | | " #* * #?????????????????????????????????????? | | + #?????????????????????????????????????? | | # #?????????????????????????????????????? | | # " ##????????????????????????????????????? | | # "" "#????????????????????????????????????? | | # "" T#????????????????????????????????????? | | # # """ "#????????????????????????????????????? | | # # ########??????????????????????????????? | | ### # ####???????????????????????????? | | #""" ## +???????????????????????????? | | #""" ## ######??????????????????????? | | #""" ## # #??????????????????????? | | # / # ! #??????????????????????? | | # # # #??????????????????????? | | ## ##+##### # *@#??????????????????????? | | ?# /g #??????????????????????? | | # #Y =#??????????????????????? | | + /g #??????????????????????? | | # ##+###### #Y #??????????????????????? | | ?# "T" #???????# # #??????????????????????? | | ?# #???????# ######??????????????????????? | | ?+ #???????# #???????????????????????????? | | ?##+#### #???????# #???????????????????????????? | | ?? ???# #???????# #???????????????????????????? | | ?# ????# #???????? #???????????????????????????? | | ?#?????#####???????? #???????????????????????????? | | ???????????????????? #???????????????????????????? | | ????????????????????#????????????????????????????? | | ?????????????????????????????????????????????????? | | ?????????????????????????????????????????????????? | | ?????????????????????????????????????????????????? | | ?????????????????????????????????????????????????? | | | | | | | | | | | | | | | +----------------------------------------------------+ Best States ------------- Heat Dissipation 31 Coolant Potential 50 Energy Generation 14 Energy Capacity 250 Matter Stores 298 Matter Capacity 500 Sight Range 16 Terrain Scan Density 10 Armor Coverage 150 Core Shielding 20 Evasion (%) 45 Recoil Reduction 4 Item Schematics ----------------- Adv. Targeting Computer | -8/Materials | Scanalyzed Robot Schematics ------------------ None Fabricated ------------ Nothing Repaired ---------- Hvy. Particle Cannon | 55% | -8/Materials Alien Tech Used ----------------- None Achievements -------------- Oops Challenges ------------ None Game ------ Seed NullWeightPurifier Manual? 0 Play Time 00:37:07 Cumulative 2.0 hours Start 2025.05.07 @ 12:22:20 End 2025.05.08 @ 15:59:42 Sessions 5 Manual Loads 0 Difficulty Rogue Special Mode None Game No. 5 Rogue 5 Adventurer 0 Explorer 0 Win Type - Total 0 Types 0/0/0/0/0/0/0/0/0/0 Lore% 2 Gallery% 7 Achievement% 7 Wizard Run 0 Options --------- Layout 1 ASCII 0 Keyboard 0 Movement Mouse Keybinds 0 Fullscreen 1 Font 24/Smallcaps Map View 50x35 Zoom Use 0% Tactical HUD 1 Map Filters NONE Filters NONE Steam 1 RUN: a6a3d16d-6748-4595-b998-a30af6fdc858